bitfinex/quotes_BTCUSD_20241222
["timestamp","ask_amount","ask_price","bid_price","bid_amount"]
[1734875477437,0.05392684,96965.0,96964.0,0.07203516]
[1734875477639,0.05392684,96963.0,96962.0,0.1183652]
[1734875477866,0.15523524,96963.0,96962.0,0.1183652]
[1734875478067,0.30523524,96963.0,96962.0,0.09717812]
[1734875478285,0.32453128,96963.0,96962.0,0.07388077]
[1734875478485,0.20392684,96962.0,96954.0,8.57e-05]
[1734875478698,0.51150124,96962.0,96954.0,8.57e-05]
[1734875478896,0.51150124,96962.0,96961.0,6e-07]
[1734875479092,0.53079728,96962.0,96961.0,6e-07]
[1734875479296,0.26020784,96955.0,96954.0,3e-07]
[1734875479451,0.51151624,96955.0,96954.0,5.464e-05]
[1734875479854,0.53081228,96955.0,96954.0,5.464e-05]
[1734875481073,0.55137059,96955.0,96954.0,5.464e-05]
[1734875481292,0.55737059,96955.0,96954.0,5.464e-05]
[1734875481492,0.55137059,96955.0,96954.0,5.464e-05]
[1734875481935,0.55737059,96955.0,96954.0,5.464e-05]
[1734875482110,0.56769126,96955.0,96954.0,5.464e-05]
[1734875482317,0.56169126,96955.0,96954.0,5.464e-05]
[1734875483545,0.05392684,96952.0,96937.0,0.0793]
[1734875483750,0.15523524,96952.0,96937.0,0.0793]
[1734875483956,0.30523524,96952.0,96937.0,0.0793]
[1734875484334,0.32453128,96952.0,96937.0,0.0793]
[1734875485158,0.32953128,96952.0,96951.0,0.0011]
[1734875488369,0.02429604,96952.0,96951.0,0.0011]
[1734875488699,0.005,96952.0,96951.0,0.0011]
[1734875490195,0.31023524,96952.0,96951.0,0.0011]
[1734875490403,0.31023524,96952.0,96951.0,0.0011858]
[1734875490572,0.32953128,96952.0,96951.0,0.0011858]
[1734875490800,0.32406453,96952.0,96951.0,0.0011858]
[1734875491217,0.01929604,96952.0,96951.0,0.0011858]
[1734875491579,0.206283,96954.0,96951.0,0.0815858]
[1734875491784,0.412566,96954.0,96951.0,0.08686972]
[1734875491978,0.206287,96952.0,96951.0,0.00646972]
[1734875492213,0.3075954,96952.0,96951.0,0.0011858]
[1734875492606,0.225505,96952.0,96951.0,0.0001858]
[1734875492812,0.375505,96952.0,96951.0,0.0011858]
[1734875493015,0.356287,96952.0,96951.0,0.0011858]
[1734875493225,0.356287,96952.0,96951.0,0.0001858]
[1734875493914,0.47681368,96952.0,96951.0,0.0001858]
[1734875494680,0.53027377,96952.0,96951.0,0.0001858]
[1734875494878,0.53327377,96952.0,96951.0,0.0001858]
[1734875495761,0.53027377,96952.0,96951.0,0.0001858]
[1734875495928,0.53727377,96952.0,96951.0,0.0011858]
[1734875496337,0.53027377,96952.0,96951.0,0.0001858]
[1734875496745,0.53327377,96952.0,96951.0,0.0001858]
[1734875498000,0.37550528,96952.0,96951.0,0.0001858]
[1734875498188,0.22550528,96952.0,96951.0,0.1286858]
[1734875498421,0.214287,96952.0,96951.0,0.1296858]
[1734875498623,0.214287,96952.0,96951.0,0.13496954]
[1734875498824,0.206287,96952.0,96951.0,0.13396954]
[1734875499253,0.214287,96952.0,96951.0,0.13496954]
[1734875499636,0.206287,96952.0,96951.0,0.13396954]
[1734875499978,0.207287,96952.0,96951.0,0.13396954]
[1734875501337,0.206287,96952.0,96951.0,0.13396954]
[1734875501538,0.207287,96952.0,96951.0,0.13396954]
[1734875501997,0.206287,96952.0,96951.0,0.13396954]
[1734875505097,0.22557178,96952.0,96951.0,0.13396954]
[1734875509385,0.23057178,96952.0,96951.0,0.13496954]
[1734875509621,0.23057178,96952.0,96951.0,0.08686954]
[1734875509803,0.37557178,96952.0,96951.0,0.00546954]
[1734875509955,0.37557178,96952.0,96951.0,0.0001858]
[1734875510158,0.38057178,96952.0,96951.0,0.0011858]
[1734875511199,0.48188018,96952.0,96951.0,0.0011858]
[1734875511837,0.53534027,96952.0,96951.0,8e-07]
[1734875512029,0.54329581,96952.0,96951.0,8e-07]
[1734875512234,0.54486984,96952.0,96951.0,8e-07]
[1734875514781,0.67006984,96952.0,96951.0,8e-07]
[1734875515136,0.67006984,96952.0,96951.0,6e-07]
[1734875515341,0.67024144,96952.0,96951.0,6e-07]
[1734875519075,0.54504144,96952.0,96951.0,6e-07]
[1734875519297,0.53551187,96952.0,96951.0,6e-07]
[1734875520109,0.48205178,96952.0,96951.0,6e-07]
[1734875520313,0.53551187,96952.0,96951.0,6e-07]
[1734875520514,0.48205178,96952.0,96951.0,6e-07]
[1734875524104,0.462767,96952.0,96951.0,6e-07]
[1734875524315,0.51622709,96952.0,96951.0,6e-07]
[1734875524934,0.462767,96952.0,96951.0,6e-07]
[1734875526815,0.3614586,96952.0,96951.0,6e-07]
[1734875527152,0.38073589,96952.0,96951.0,6e-07]
[1734875527760,0.43419598,96952.0,96951.0,6e-07]
[1734875528284,0.53550438,96952.0,96951.0,6e-07]
[1734875531423,0.48204429,96952.0,96951.0,0.0808006]
[1734875531839,0.38073589,96952.0,96951.0,0.0808006]
[1734875533103,0.43419598,96952.0,96951.0,0.0808006]
[1734875533318,0.53550438,96952.0,96951.0,6e-07]
[1734875533464,0.356304,96944.0,96943.0,0.0808]
[1734875533888,0.37558129,96944.0,96943.0,0.0808]
[1734875534876,0.356304,96944.0,96943.0,0.0808]
[1734875535442,0.358304,96944.0,96943.0,0.0808]
[1734875536824,0.37759421,96944.0,96943.0,0.0808]
[1734875539717,0.206321,96936.0,96935.0,0.0808]
[1734875539925,0.356324,96935.0,96932.0,8.58e-05]
[1734875540063,0.356328,96933.0,96932.0,8.58e-05]
[1734875540254,0.4576364,96933.0,96932.0,8.58e-05]
[1734875540448,0.47692661,96933.0,96932.0,8.58e-05]
[1734875541325,0.50780568,96933.0,96932.0,8.58e-05]
[1734875541728,0.50780568,96933.0,96932.0,0.0020858]
[1734875542040,0.50780568,96933.0,96932.0,8.58e-05]
[1734875542242,0.51280568,96933.0,96932.0,0.0010858]
[1734875545854,0.41149728,96933.0,96932.0,0.0010858]
[1734875546678,0.39220707,96933.0,96932.0,0.0010858]
[1734875547923,0.7487285,96925.0,96922.0,0.0808]
[1734875548040,0.9550735,96925.0,96922.0,0.0808]
[1734875548240,0.9550735,96925.0,96923.0,0.00558199]
[1734875548440,0.9550735,96925.0,96922.0,0.0808]
[1734875548652,1.1614185,96925.0,96922.0,0.0808]
[1734875549479,1.1634185,96925.0,96922.0,0.0808]
[1734875549677,0.206349,96923.0,96922.0,0.0808]
[1734875550198,0.22563275,96923.0,96922.0,0.0808]
[1734875550755,0.206349,96923.0,96922.0,0.0808]
[1734875550869,0.22563275,96923.0,96922.0,0.0808]
[1734875551070,0.22563275,96923.0,96922.0,0.2038]
[1734875551275,0.206349,96923.0,96922.0,0.20938257]
[1734875551471,0.206349,96923.0,96922.0,0.08638257]
[1734875551716,0.206349,96923.0,96922.0,0.0808]
[1734875552103,0.209349,96923.0,96922.0,0.1808]
[1734875552317,0.206349,96923.0,96922.0,0.1808]
[1734875552674,0.207349,96923.0,96922.0,0.1808]
[1734875553024,0.206349,96923.0,96922.0,0.1808]
[1734875553388,0.207349,96923.0,96922.0,0.1808]
[1734875553592,0.206349,96923.0,96922.0,0.18610602]
[1734875554019,0.206349,96923.0,96922.0,0.18619182]
[1734875555052,0.207349,96923.0,96922.0,0.18619182]
[1734875555843,0.206349,96923.0,96922.0,0.18619182]
[1734875556374,0.206349,96923.0,96922.0,0.18919182]
[1734875559010,0.206349,96923.0,96922.0,0.08919182]
[1734875559225,0.206349,96923.0,96922.0,0.28161472]
[1734875559433,0.206349,96923.0,96922.0,0.18161472]
[1734875560219,0.206349,96923.0,96922.0,0.17861472]
[1734875560348,0.22564566,96923.0,96922.0,0.17861472]
[1734875560550,0.22564566,96923.0,96922.0,0.08619182]
[1734875560749,0.206349,96923.0,96922.0,0.08619182]
[1734875561523,0.207349,96923.0,96922.0,0.08619182]
[1734875561675,0.51713668,96920.0,96919.0,0.00028606]
[1734875562658,0.53643632,96920.0,96919.0,0.00028606]
[1734875562883,0.53643632,96920.0,96919.0,0.00128606]
[1734875563085,0.53643632,96920.0,96919.0,0.00028606]
[1734875563260,0.51713668,96920.0,96919.0,0.00028606]
[1734875563458,0.51813668,96920.0,96919.0,0.00028606]
[1734875564003,0.53743978,96920.0,96919.0,0.00028606]
[1734875564550,0.51813668,96920.0,96919.0,0.13148606]
[1734875566554,0.53745419,96920.0,96919.0,0.13148606]
[1734875570215,0.53745419,96920.0,96919.0,0.00028606]
[1734875574738,0.53745419,96920.0,96919.0,0.08178606]
[1734875576354,0.53745419,96920.0,96919.0,0.00028606]
[1734875578259,0.53745419,96920.0,96919.0,0.00037186]
[1734875578471,0.53762579,96920.0,96919.0,0.00037186]
[1734875582986,0.53762579,96920.0,96919.0,0.07597186]
[1734875583195,0.51830828,96920.0,96919.0,0.14757186]
[1734875583372,0.51830828,96920.0,96919.0,0.28614805]
[1734875584176,0.51830828,96920.0,96919.0,0.49250505]
[1734875584916,0.51730828,96920.0,96919.0,0.46950505]
[1734875585134,0.51830828,96920.0,96919.0,0.47450505]
[1734875586312,0.51830828,96920.0,96919.0,0.31468796]
[1734875586651,0.51730828,96920.0,96919.0,0.30968796]
[1734875587014,0.51830828,96920.0,96919.0,0.31568796]
[1734875587220,0.51730828,96920.0,96919.0,0.30968796]
[1734875587622,0.51830828,96920.0,96919.0,0.31568796]
[1734875587804,0.51730828,96920.0,96919.0,0.30968796]
[1734875588313,0.51830828,96920.0,96919.0,0.31568796]
[1734875588504,0.51730828,96920.0,96919.0,0.30968796]
[1734875590328,0.51830828,96920.0,96919.0,0.41568796]
[1734875590547,0.51730828,96920.0,96919.0,0.40968796]
[1734875590659,0.51730828,96920.0,96919.0,0.41568796]
[1734875590859,0.51830828,96920.0,96919.0,0.41568796]
[1734875591176,0.51730828,96920.0,96919.0,0.40968796]
[1734875592001,0.51830828,96920.0,96919.0,0.41568796]
[1734875592578,0.51830828,96920.0,96919.0,0.43868796]
[1734875592579,0.39020828,96920.0,96919.0,0.43868796]
[1734875592786,0.0001716,96951.0,96932.0,0.45286991]
[1734875592995,0.0001716,96951.0,96932.0,0.71879888]
[1734875593198,0.0001716,96951.0,96932.0,1.31836832]
[1734875593398,0.0001716,96951.0,96950.0,0.35283091]
[1734875593613,0.0001716,96951.0,96950.0,0.45914884]
[1734875593817,0.0001716,96951.0,96950.0,0.15285784]
[1734875594030,0.0001716,96951.0,96950.0,0.00500953]
[1734875594247,0.0001716,96951.0,96932.0,0.6945]
[1734875594477,0.0001716,96951.0,96950.0,0.04653991]
[1734875595174,0.0011716,96951.0,96950.0,0.05253991]
[1734875595382,0.0011716,96951.0,96950.0,0.05357126]
[1734875595562,0.0011716,96951.0,96950.0,0.05883174]
[1734875596502,0.0011716,96951.0,96950.0,0.05780039]
[1734875597172,0.0011716,96951.0,96950.0,0.05253991]
[1734875598967,0.0011716,96951.0,96950.0,0.15384831]
[1734875599182,0.0011716,96951.0,96950.0,0.16014191]
[1734875604373,0.0011716,96951.0,96950.0,0.15911063]
[1734875604899,0.0011716,96951.0,96950.0,0.16014196]
[1734875607279,0.0011716,96951.0,96950.0,0.26014196]
[1734875607484,0.0011716,96951.0,96950.0,0.25911063]
[1734875610366,0.0011716,96951.0,96950.0,0.57371063]
[1734875610585,0.0001716,96951.0,96950.0,0.56771063]
[1734875610800,0.0001716,96951.0,96950.0,1.25289784]
[1734875611134,0.0011716,96951.0,96950.0,1.25989784]
[1734875611335,0.0001716,96951.0,96950.0,1.25289784]
[1734875611476,0.0001716,96951.0,96950.0,1.15289784]
[1734875611686,0.0001716,96951.0,96950.0,1.25289784]
[1734875612103,0.206203,96992.0,96950.0,1.25289784]
[1734875612104,0.206203,96992.0,96951.0,0.62582891]
[1734875612303,0.206203,96992.0,96951.0,0.72713731]
[1734875612501,0.206203,96992.0,96951.0,0.84108678]
[1734875612701,0.0758,96996.0,96951.0,0.84108678]
[1734875612702,0.0758,96996.0,96951.0,1.38558678]
[1734875612908,0.0485,96998.0,96990.0,0.25274591]
[1734875613111,0.00033443,96991.0,96990.0,0.35405431]
[1734875613317,0.00033443,96991.0,96990.0,0.35926605]
[1734875614405,0.00033443,96991.0,96990.0,0.45926605]
[1734875614610,0.00133443,96991.0,96990.0,0.46626605]
[1734875616664,0.00133443,96991.0,96990.0,0.16006005]
[1734875617099,0.00133443,96991.0,96990.0,0.26109084]
[1734875617213,0.00133443,96991.0,96990.0,0.26006005]
[1734875620420,0.00133443,96991.0,96990.0,0.38306005]
[1734875620618,0.00133443,96991.0,96990.0,0.41498253]
[1734875621203,0.00133443,96991.0,96990.0,0.29198253]
[1734875621416,0.00033443,96991.0,96990.0,0.15306005]
[1734875621639,0.00033443,96991.0,96990.0,0.15765768]
[1734875622013,0.00033443,96991.0,96990.0,0.15662683]
[1734875622457,0.00133443,96991.0,96990.0,0.11808692]
[1734875622669,0.00133443,96991.0,96990.0,0.16462683]
[1734875623724,0.00033443,96991.0,96990.0,0.15765762]
[1734875623933,0.00133443,96991.0,96990.0,0.16565762]
[1734875624341,0.00033443,96991.0,96990.0,0.15765762]
[1734875624540,0.00133443,96991.0,96990.0,0.16565762]
[1734875624966,0.00033443,96991.0,96990.0,0.15765762]
[1734875625171,0.00133443,96991.0,96990.0,0.16565762]
[1734875625544,0.00033443,96991.0,96990.0,0.15765762]
[1734875626989,0.00133443,96991.0,96990.0,0.16565762]
[1734875627561,0.00033443,96991.0,96990.0,0.15765762]
[1734875628215,0.00033443,96991.0,96990.0,0.16565762]
[1734875628413,0.00133443,96991.0,96990.0,0.16565762]
[1734875628611,0.00033443,96991.0,96990.0,0.15765762]
[1734875628810,0.00033443,96991.0,96990.0,0.11008692]
[1734875629021,0.00133443,96991.0,96990.0,0.16562683]
[1734875629335,0.04703443,96991.0,96990.0,0.11908692]
[1734875629738,0.04703443,96991.0,96990.0,0.16562683]
[1734875630284,0.12673443,96991.0,96990.0,0.05531843]
[1734875630416,0.12673443,96991.0,96990.0,0.00877852]
[1734875630625,0.12673443,96991.0,96990.0,0.06331843]
[1734875630626,0.12773443,96991.0,96990.0,0.06331843]
[1734875631017,0.04603443,96991.0,96987.0,0.04653991]
[1734875631178,0.286906,96990.0,96989.0,0.04653991]
[1734875631555,0.206206,96990.0,96989.0,0.04653991]
[1734875632209,0.286906,96990.0,96989.0,0.04653991]
[1734875632439,0.25223843,96991.0,96956.0,0.1]
[1734875632440,0.251911,96988.0,96956.0,0.1]
[1734875632611,0.206254,96968.0,96957.0,0.13433599]
[1734875632806,0.0807,96967.0,96958.0,0.03199657]
[1734875633007,0.0807,96967.0,96959.0,0.10233956]
[1734875633273,0.0807,96967.0,96959.0,0.11029514]
[1734875633757,0.0807,96967.0,96966.0,0.04653991]
[1734875633954,0.0807,96967.0,96966.0,0.14784831]
[1734875634354,0.0807,96967.0,96966.0,0.1557958]
[1734875634599,0.0817,96967.0,96966.0,0.1557958]
[1734875634795,0.0807,96967.0,96966.0,0.1557958]
[1734875635213,0.0817,96967.0,96966.0,0.1647958]
[1734875635986,0.0817,96967.0,96966.0,0.11825589]
[1734875636608,0.1274,96967.0,96966.0,0.11825589]
[1734875639007,0.1274,96967.0,96966.0,0.1647958]
[1734875641341,0.001,96967.0,96966.0,0.1647958]
[1734875641553,0.001,96967.0,96966.0,0.16582687]
[1734875642354,0.001,96967.0,96966.0,0.37208387]
[1734875642561,0.001,96967.0,96966.0,0.3710528]
[1734875643356,0.001,96967.0,96966.0,0.3815059]
[1734875644953,0.252509,96989.0,96984.0,0.04653991]
[1734875644954,0.0769,96985.0,96984.0,0.04653991]
[1734875645398,0.0769,96985.0,96984.0,0.14784831]
[1734875645607,0.0463,96989.0,96988.0,0.04653991]
[1734875645801,0.0463,96989.0,96988.0,0.14887923]
[1734875646002,0.0769,96993.0,96988.0,0.15684252]
[1734875646324,0.0769,96993.0,96990.0,0.04653991]
[1734875646642,0.0769,96993.0,96990.0,0.14887922]
[1734875646843,0.0769,96993.0,96990.0,0.1568402]
[1734875647694,0.0769,96993.0,96990.0,0.15580929]
[1734875647898,0.283101,96993.0,96990.0,0.15580929]
[1734875648264,0.283101,96993.0,96990.0,0.05450089]
[1734875648801,0.283101,96993.0,96990.0,0.05950089]
[1734875649371,0.283101,96993.0,96990.0,0.05450089]
[1734875649795,0.283101,96993.0,96990.0,0.05750089]
[1734875650367,0.283101,96993.0,96990.0,0.04953991]
[1734875651404,0.283101,96993.0,96990.0,0.04653991]
[1734875652028,0.283101,96993.0,96990.0,0.04853991]
[1734875652165,0.0769,96993.0,96990.0,0.14984831]
[1734875652371,0.0769,96993.0,96990.0,0.15087917]
[1734875652575,0.0769,96993.0,96990.0,0.15882784]
[1734875654046,0.0769,96993.0,96990.0,0.2966994]
[1734875654215,0.0001716,97039.0,96990.0,1.21316854]
[1734875654216,0.0001714,97017.0,96990.0,1.21316854]
[1734875654425,0.0001714,97017.0,96990.0,1.39554794]
[1734875655045,0.0001714,97017.0,96990.0,1.39764794]
[1734875655252,0.0001714,97017.0,96990.0,1.25977638]
[1734875655869,0.0001714,97017.0,96990.0,1.25777638]
[1734875656074,0.00433443,96991.0,96990.0,1.25777638]
[1734875656710,0.0001714,97017.0,97014.0,0.04653991]
[1734875656915,0.00071473,97015.0,97014.0,0.18095824]
[1734875657066,0.00071473,97015.0,97014.0,0.15685584]
[1734875658399,0.00071473,97015.0,97014.0,0.16285584]
[1734875659829,0.00071473,97015.0,97014.0,0.26285584]
[1734875660000,0.00071473,97015.0,97014.0,0.26182531]
[1734875660184,0.00071473,97015.0,97014.0,0.36182531]
[1734875660375,0.00071473,97015.0,97014.0,0.53482531]
[1734875660787,0.00071473,97015.0,97014.0,0.56679586]
[1734875661218,0.00071473,97015.0,97014.0,0.52882531]
[1734875661522,0.00071473,97015.0,97014.0,0.56077723]
[1734875662138,0.00071473,97015.0,97014.0,0.41423732]
[1734875662350,0.00071473,97015.0,97014.0,0.56077723]
[1734875662554,0.07347233,97039.0,97038.0,0.04653991]
[1734875662781,0.0736352,97039.0,97038.0,0.14784831]
[1734875663179,0.0736352,97039.0,97038.0,0.15578745]
[1734875665490,0.0736352,97039.0,97038.0,0.16378745]
[1734875667724,0.0736352,97039.0,97038.0,0.16081027]
[1734875668706,0.0736352,97039.0,97038.0,0.16184063]
[1734875670906,0.0736352,97039.0,97038.0,0.05950187]
[1734875671488,0.0736352,97039.0,97038.0,0.05453991]
[1734875671687,0.0736352,97039.0,97038.0,0.04653991]
[1734875672472,0.0736352,97039.0,97038.0,0.04853991]
[1734875673116,0.128,97019.0,97006.0,0.23006249]
[1734875673288,0.285955,97014.0,97006.0,0.23006249]
[1734875673503,0.285955,97014.0,97010.0,0.13803749]
[1734875673743,0.334155,97014.0,97010.0,0.13803749]
[1734875673943,0.484155,97014.0,97013.0,0.00321295]
[1734875674281,0.15,97013.0,97010.0,0.13803749]
[1734875674489,0.435962,97011.0,97010.0,0.06284015]
[1734875674849,0.435962,97011.0,97010.0,0.04094015]
[1734875675066,0.435962,97011.0,96990.0,8.56e-05]
[1734875675067,0.286004,96991.0,96990.0,8.56e-05]
[1734875675218,0.286004,96991.0,96990.0,0.101394]
[1734875676200,0.334204,96991.0,96990.0,0.101394]
[1734875676399,0.334204,96991.0,96990.0,0.10193713]
[1734875677409,0.334204,96991.0,96990.0,0.00062873]
[1734875683761,0.334204,96991.0,96990.0,0.10193713]
[1734875686078,0.334204,96991.0,96990.0,0.00062873]
[1734875688479,0.0798,96991.0,96990.0,0.10193713]
[1734875688688,0.4124,96993.0,96990.0,0.10193713]
[1734875688903,0.2062,96993.0,96991.0,0.1013084]
[1734875689336,0.2062,96993.0,96991.0,0.10233933]
[1734875689509,0.2062,96993.0,96992.0,0.01261087]
[1734875689716,0.2062,96993.0,96992.0,0.11391927]
[1734875691722,0.2062,96993.0,96992.0,0.11791927]
[1734875694653,0.206193,96997.0,96992.0,0.11791927]
[1734875694854,0.287083,97001.0,96993.0,0.1013084]
[1734875695052,0.206164,97010.0,96993.0,0.1023393]
[1734875695263,0.206164,97010.0,96994.0,0.01259239]
[1734875695469,0.206164,97010.0,96995.0,0.10233916]
[1734875695784,0.206164,97010.0,96996.0,0.01256452]
[1734875696011,0.206164,97010.0,96997.0,0.10233916]
[1734875696383,0.206174,97006.0,96998.0,0.01256066]
[1734875696591,0.206164,97010.0,96999.0,0.10233919]
[1734875696941,0.206164,97010.0,96999.0,0.11489793]
[1734875697115,0.412329,97010.0,96999.0,0.11489793]
[1734875698968,0.412329,97010.0,96999.0,0.11889793]
[1734875699174,0.2063352,97010.0,96999.0,0.11889793]
[1734875699583,0.0001712,97010.0,96999.0,0.32508493]
[1734875700694,0.0001712,97010.0,96999.0,0.53127193]
[1734875700864,0.08072163,97011.0,96999.0,0.32508493]
[1734875701814,0.08072163,97011.0,96999.0,0.32108493]
[1734875702196,0.08072163,97011.0,96999.0,0.11689793]
[1734875702398,0.206153,97015.0,96999.0,0.11489793]
[1734875702834,0.206153,97015.0,96999.0,0.12089793]
[1734875703244,0.412306,97015.0,97000.0,0.206185]
[1734875703446,0.206153,97015.0,97001.0,0.10233912]
[1734875703644,0.206153,97015.0,97001.0,0.11487142]
[1734875704008,0.285553,97015.0,97001.0,0.11487142]
[1734875704635,0.491706,97015.0,97001.0,0.11487142]
[1734875705411,0.206164,97010.0,97001.0,0.11487142]
[1734875705626,0.0794,97015.0,97001.0,0.11487142]
[1734875706183,0.206166,97010.0,97001.0,0.11487142]
[1734875706384,0.206166,97010.0,97001.0,0.10233912]
[1734875706589,0.206166,97010.0,97001.0,0.10633912]
[1734875706793,0.206166,97010.0,97002.0,0.01253038]
[1734875707002,0.206166,97010.0,97003.0,0.10233915]
[1734875707207,0.206166,97010.0,97003.0,0.11484193]
[1734875707588,0.206155,97014.0,97003.0,0.11484193]
[1734875708261,0.0794,97015.0,97003.0,0.01353353]
[1734875708479,0.206177,97004.0,97003.0,0.01250278]
[1734875708669,0.206204,96991.0,96990.0,0.00062873]
[1734875708882,0.285604,96991.0,96990.0,0.00062873]
[1734875709044,0.285604,96991.0,96990.0,0.01106509]
[1734875709222,0.285604,96991.0,96990.0,0.00062873]
[1734875709829,0.285604,96991.0,96990.0,0.00662873]
[1734875710463,0.335504,96991.0,96990.0,0.00662873]
[1734875712713,0.335504,96991.0,96990.0,0.00062873]
[1734875713507,0.335504,96991.0,96990.0,0.00262873]
[1734875717712,0.34580882,96991.0,96990.0,0.00262873]
[1734875722522,0.34580882,96991.0,96990.0,7.3e-07]
[1734875723615,0.34580882,96991.0,96990.0,8.633e-05]
[1734875723819,0.34580882,96991.0,96990.0,8.56e-05]
[1734875724651,0.34580882,96991.0,96990.0,6e-07]
[1734875728912,0.36630441,96991.0,96990.0,6e-07]
[1734875729609,0.51630441,96991.0,96990.0,6e-07]
[1734875736868,0.51647561,96991.0,96990.0,6e-07]
[1734875758689,0.46657561,96991.0,96990.0,6e-07]
[1734875758897,0.38717561,96991.0,96990.0,6e-07]
[1734875760587,0.38917561,96991.0,96990.0,0.0010006]
[1734875760800,0.38717561,96991.0,96990.0,6e-07]
[1734875761167,0.38917561,96991.0,96990.0,6e-07]
[1734875761365,0.38717561,96991.0,96990.0,6e-07]
[1734875761766,0.38917561,96991.0,96990.0,6e-07]
[1734875762191,0.38717561,96991.0,96990.0,6e-07]
[1734875763599,0.38917561,96991.0,96990.0,6e-07]
[1734875763845,0.38717561,96991.0,96990.0,6e-07]
[1734875764365,0.38917561,96991.0,96990.0,6e-07]
[1734875764573,0.38717561,96991.0,96990.0,6e-07]
[1734875765025,0.38917561,96991.0,96990.0,6e-07]
[1734875766856,0.36868002,96991.0,96990.0,6e-07]
[1734875767063,0.0021712,96991.0,96990.0,0.101309]
[1734875767265,0.0021712,96991.0,96990.0,0.146509]
[1734875767484,0.0021712,96991.0,96990.0,0.1875486]
[1734875767677,0.0021712,96991.0,96990.0,0.15636109]
[1734875767995,0.0001712,96991.0,96990.0,0.18854913]
[1734875768229,0.0001712,96991.0,96990.0,0.18954913]
[1734875768468,0.18434939,97005.0,96990.0,0.18954913]
[1734875768469,0.206149,97018.0,97000.0,0.1006]
[1734875768666,0.09217469,97027.0,97005.0,0.306174]
[1734875768868,0.412261,97026.0,97008.0,0.1]
[1734875768994,0.20614,97022.0,97009.0,0.13452705]
[1734875769201,0.20614,97022.0,97009.0,0.14355995]
[1734875769407,0.20614,97022.0,97009.0,0.18875995]
[1734875769603,0.20614,97022.0,97009.0,0.15657191]
[1734875769838,0.20614,97022.0,97009.0,0.38811483]
[1734875770006,0.20614,97022.0,97009.0,0.38708422]
[1734875770530,0.20615,97017.0,97009.0,0.38708422]
[1734875770812,0.206159,97013.0,97009.0,0.34188422]
[1734875771168,0.206159,97013.0,97009.0,0.1193413]
[1734875771767,0.20615,97017.0,97009.0,0.12037201]
[1734875771997,0.206159,97013.0,97009.0,0.12037201]
[1734875772322,0.206159,97013.0,97009.0,0.1193413]
[1734875773185,0.20615,97017.0,97009.0,0.1193413]
[1734875773390,0.20615,97017.0,97009.0,0.12037199]
[1734875774401,0.206159,97013.0,97009.0,0.1193413]
[1734875776125,0.20615,97017.0,97009.0,0.1193413]
[1734875776323,0.20615,97017.0,97009.0,0.12037199]
[1734875776528,0.206143,97020.0,97009.0,0.12037199]
[1734875777341,0.20614,97022.0,97009.0,0.1193413]
[1734875777568,0.285209,97037.0,97009.0,0.1193413]
[1734875777569,0.206127,97028.0,97009.0,0.1193413]
[1734875777695,0.206127,97028.0,97009.0,0.2203719]
[1734875777901,0.206127,97028.0,97009.0,0.2193413]
[1734875778105,0.206119,97032.0,97009.0,0.4693413]
[1734875780234,0.206127,97028.0,97009.0,0.56173095]
[1734875780863,0.206119,97032.0,97009.0,0.56173095]
[1734875781294,0.206119,97032.0,97009.0,0.4693413]
[1734875782291,0.206127,97028.0,97009.0,0.4693413]
[1734875782504,0.206119,97032.0,97009.0,0.4693413]
[1734875786058,0.206127,97028.0,97009.0,0.4693413]
[1734875794886,0.0803,97029.0,97009.0,0.4693413]
[1734875795088,0.0803,97029.0,97009.0,0.52434523]
[1734875795447,0.206126,97028.0,97009.0,0.52434523]
[1734875796213,0.0803,97029.0,97009.0,0.52434523]
[1734875796930,0.206126,97028.0,97009.0,0.52434523]
[1734875798909,0.0803,97029.0,97009.0,0.52434523]
[1734875800301,0.0803,97038.0,97009.0,0.52434523]
[1734875800964,0.0803,97038.0,97009.0,0.63304523]
[1734875801169,0.0803,97038.0,97009.0,0.67824523]
[1734875801373,0.0803,97038.0,97009.0,1.22274523]
[1734875802095,0.0803,97038.0,97009.0,1.30613488]
[1734875803123,0.0803,97038.0,97009.0,1.30713488]
[1734875803324,0.0803,97038.0,97009.0,1.30613488]
[1734875803526,0.0803,97038.0,97009.0,1.35232971]
[1734875804960,0.0803,97038.0,97009.0,1.44471936]
[1734875806256,0.0803,97038.0,97009.0,1.21374523]
[1734875807289,0.077,97044.0,97013.0,1.0262]
[1734875807495,0.0485716,97049.0,97038.0,0.1]
[1734875807496,0.0001716,97049.0,97038.0,0.1]
[1734875807715,0.0001716,97049.0,97038.0,0.46241633]
[1734875807945,0.0001716,97049.0,97038.0,0.47120828]
[1734875808570,0.0001716,97049.0,97038.0,0.60950815]
[1734875808786,0.00022553,97039.0,97038.0,0.60950815]
[1734875810050,0.00022553,97039.0,97038.0,0.61550815]
[1734875810269,0.00022553,97039.0,97038.0,0.14810428]
[1734875810495,0.00022553,97039.0,97038.0,0.24313462]
[1734875810700,0.00022553,97039.0,97038.0,0.24210428]
[1734875811132,0.00022553,97039.0,97038.0,0.26610428]
[1734875813659,0.00022553,97039.0,97038.0,0.55255972]
[1734875814751,0.00022553,97039.0,97038.0,0.27638763]
[1734875815281,0.00022553,97039.0,97038.0,0.25338763]
[1734875816306,0.00022553,97039.0,97038.0,0.79788763]
[1734875821231,0.12532553,97039.0,97038.0,0.68760428]
[1734875821440,0.12532553,97039.0,97038.0,0.11110035]
[1734875821870,0.12532553,97039.0,97038.0,0.00979195]
[1734875822016,0.12532553,97039.0,97038.0,0.00879195]
[1734875822224,0.12532553,97039.0,97038.0,0.00979195]
[1734875822427,0.12532553,97039.0,97038.0,0.001]
[1734875822627,0.12532553,97039.0,97038.0,0.007298]
[1734875822826,0.206107,97037.0,97029.0,0.00103051]
[1734875823168,0.206117,97033.0,97030.0,0.10864361]
[1734875823739,0.412234,97033.0,97030.0,0.10864361]
[1734875824064,0.412234,97033.0,97030.0,0.1013084]
[1734875825151,0.412234,97033.0,97031.0,0.00733391]
[1734875825270,0.412234,97033.0,97032.0,0.1013084]
[1734875825889,0.491134,97033.0,97032.0,0.1013084]
[1734875827149,0.491134,97033.0,97032.0,0.10864197]
[1734875827973,0.491134,97033.0,97032.0,0.11064197]
[1734875828572,0.491134,97033.0,97032.0,0.10864197]
[1734875828776,0.491134,97033.0,97032.0,0.11364197]
[1734875829392,0.491134,97033.0,97032.0,0.1063084]
[1734875834341,0.537334,97033.0,97032.0,0.005]
[1734875835558,0.206132,97025.0,97024.0,0.09243314]
[1734875835769,0.206132,97025.0,97024.0,0.1013084]
[1734875835974,0.206132,97025.0,97024.0,0.10867481]
[1734875838038,0.207132,97025.0,97024.0,0.11767481]
[1734875838248,0.207132,97025.0,97024.0,0.12807594]